fUSD/lending_fUSD_20260126
["ID","MTS","AMOUNT","RATE_DAILY","PERIOD"]
[403580174,1769388649520,-500.0,0.00016438,2]
[403580176,1769388649530,-571.08336812,0.00016438,2]
[403580178,1769388649539,-500.0,0.00016438,2]
[403580181,1769388649549,-500.0,0.00016438,2]
[403580183,1769388649558,-500.0,0.00016438,2]
[403580185,1769388649567,-500.0,0.00016438,2]
[403580186,1769388649576,-500.0,0.00016438,2]
[403580188,1769388649585,-500.0,0.00016438,2]
[403580190,1769388649594,-500.0,0.00016438,2]
[403580192,1769388649603,-500.0,0.00016438,2]
[403580194,1769388649612,-500.0,0.00016438,2]
[403580196,1769388649622,-500.0,0.00016438,2]
[403580198,1769388649631,-500.0,0.00016438,2]
[403580200,1769388649640,-500.0,0.00016438,2]
[403580202,1769388649651,-526.71,0.00016438,2]
[403580203,1769388649665,-500.0,0.00016438,2]
[403580204,1769388649675,-500.0,0.00016438,2]
[403580205,1769388649684,-500.0,0.00016438,2]
[403580206,1769388649694,-500.0,0.00016438,2]
[403580207,1769388649706,-500.0,0.00016438,2]
[403580208,1769388649715,-500.0,0.00016438,2]
[403580209,1769388649724,-500.0,0.00016438,2]
[403580210,1769388649733,-500.0,0.00016438,2]
[403580211,1769388649743,-500.0,0.00016438,2]
[403580212,1769388649752,-500.0,0.00016438,2]
[403580213,1769388649761,-500.0,0.00016438,2]
[403580214,1769388649770,-500.0,0.00016438,2]
[403580215,1769388649781,-500.0,0.00016438,2]
[403580216,1769388649790,-500.0,0.00016438,2]
[403580217,1769388649799,-500.0,0.00016438,2]
[403580218,1769388649808,-500.0,0.00016438,2]
[403580219,1769388649817,-500.0,0.00016438,2]
[403580221,1769388649826,-500.0,0.00016438,2]
[403580222,1769388649835,-500.0,0.00016438,2]
[403580223,1769388649844,-500.0,0.00016438,2]
[403580225,1769388649853,-500.0,0.00016438,2]
[403580226,1769388649863,-500.0,0.00016438,2]
[403580228,1769388649872,-500.0,0.00016438,2]
[403580229,1769388649881,-500.0,0.00016438,2]
[403580230,1769388649890,-500.0,0.00016438,2]
[403580231,1769388649899,-500.0,0.00016438,2]
[403580232,1769388649908,-500.0,0.00016438,2]
[403580233,1769388649917,-500.0,0.00016438,2]
[403580234,1769388649927,-500.0,0.00016438,2]
[403580235,1769388649936,-500.0,0.00016438,2]
[403580236,1769388649945,-500.0,0.00016438,2]
[403580237,1769388649955,-500.0,0.00016438,2]
[403580238,1769388649965,-500.0,0.00016438,2]
[403580239,1769388649975,-500.0,0.00016438,2]
[403580240,1769388649985,-500.0,0.00016438,2]
[403580241,1769388649994,-591.37,0.00016438,2]
[403580242,1769388650004,-500.0,0.00016438,2]
[403580243,1769388650013,-500.0,0.00016438,2]
[403580244,1769388650023,-500.0,0.00016438,2]
[403580245,1769388650033,-500.0,0.00016438,2]
[403580246,1769388650043,-500.0,0.00016438,2]
[403580247,1769388650053,-500.0,0.00016438,2]
[403580248,1769388650062,-500.0,0.00016438,2]
[403580249,1769388650071,-500.0,0.00016438,2]
[403580250,1769388650080,-500.0,0.00016438,2]
[403580251,1769388650090,-500.0,0.00016438,2]
[403580252,1769388650100,-500.0,0.00016438,2]
[403580253,1769388650111,-500.0,0.00016438,2]
[403580254,1769388650120,-500.0,0.00016438,2]
[403580255,1769388650129,-500.0,0.00016438,2]
[403580256,1769388650140,-500.0,0.00016438,2]
[403580257,1769388650149,-500.0,0.00016438,2]
[403580258,1769388650158,-500.0,0.00016438,2]
[403580259,1769388650168,-500.0,0.00016438,2]
[403580260,1769388650177,-500.0,0.00016438,2]
[403580261,1769388650188,-500.0,0.00016438,2]
[403580262,1769388650198,-500.0,0.00016438,2]
[403580263,1769388650207,-500.0,0.00016438,2]
[403580264,1769388650217,-500.0,0.00016438,2]
[403580265,1769388650226,-500.0,0.00016438,2]
[403580266,1769388650235,-500.0,0.00016438,2]
[403580267,1769388650245,-636.28586914,0.00016438,2]
[403580268,1769388650254,-500.0,0.00016438,2]
[403580270,1769388650264,-147.04831073,0.00016438,2]
[403580279,1769388650721,-352.95168927,0.00016438,2]
[403580280,1769388650733,-500.0,0.00016438,2]
[403580281,1769388650742,-500.0,0.00016438,2]
[403580282,1769388650751,-379.75697753,0.00016438,2]
[403580283,1769388650763,-120.24302247,0.00016438,2]
[403580284,1769388650772,-210.70777709,0.00016438,2]
[403580285,1769388650851,-289.29222291,0.00016438,2]
[403580286,1769388650861,-298.71710462,0.00016438,2]
[403580287,1769388651969,-201.28289538,0.00016438,2]
[403580288,1769388651979,-500.0,0.00016438,2]
[403580289,1769388651989,-500.0,0.00016438,2]
[403580290,1769388651998,-500.0,0.00016438,2]
[403580291,1769388652008,-500.0,0.00016438,2]
[403580292,1769388652018,-145.26722797,0.00016438,2]
[403580293,1769388652052,-151.0,0.00015547,2]
[403580294,1769388652062,-354.73277203,0.00016438,2]
[403580295,1769388652071,-500.0,0.00016438,2]
[403580296,1769388652081,-500.0,0.00016438,2]
[403580297,1769388652091,-500.0,0.00016438,2]
[403580298,1769388652100,-500.0,0.00016438,2]
[403580299,1769388652110,-500.0,0.00016438,2]
[403580300,1769388652119,-500.0,0.00016438,2]
[403580301,1769388652130,-500.0,0.00016438,2]
[403580302,1769388652139,-1494.34,0.00016438,2]
[403580303,1769388652149,-500.0,0.00016438,2]
[403580304,1769388652159,-500.0,0.00016438,2]
[403580305,1769388652169,-500.0,0.00016438,2]
[403580306,1769388652179,-500.0,0.00016438,2]
[403580307,1769388652189,-500.0,0.00016438,2]
[403580308,1769388652198,-500.0,0.00016438,2]
[403580309,1769388652208,-500.0,0.00016438,2]
[403580310,1769388652217,-500.0,0.00016438,2]
[403580311,1769388652228,-500.0,0.00016438,2]
[403580312,1769388652238,-500.0,0.00016438,2]
[403580313,1769388652248,-1618.35,0.00016438,2]
[403580314,1769388652257,-802.93518197,0.00016438,2]
[403580318,1769389209641,3379.87,0.00014466,14]
[403580319,1769389773099,-184.95,0.00011053,2]
[403580320,1769389773121,-306.72288047,0.00011606,2]
[403580321,1769389773141,-250.0,0.00012158,2]
[403580322,1769389773162,-195.0,0.00012158,2]
[403580323,1769389773183,-13.63659853,0.00012158,2]
[403580341,1769389832732,-181.36340147,0.00012158,2]
[403580342,1769389832742,-267.59984792,0.00013396,2]
[403580343,1769389832752,-1000.0,0.00013467,2]
[403580344,1769389832762,-200.0,0.00013496,2]
[403580345,1769389832772,-238.55882215,0.00013535,2]
[403580346,1769389832832,-347.14117785,0.00013535,2]
[403580347,1769389832842,-177.38,0.00013772,2]
[403580348,1769389832852,-11412.59827359,0.00013796,2]
[403580349,1769389832906,-5430.35375485,0.00013796,2]
[403580350,1769389832919,-2305.58797156,0.00013796,2]
[403580351,1769389832928,-179.77,0.00013824,2]
[403580352,1769389832938,-179.77,0.00013846,2]
[403580353,1769389832948,-701.0,0.00013862,2]
[403580354,1769389832958,-340.0,0.00013862,2]
[403580355,1769389832968,-179.77,0.00013867,2]
[403580356,1769389832979,-1200.0,0.00013888,2]
[403580357,1769389832989,-1920.0,0.00013889,2]
[403580358,1769389833004,-258.0,0.00013889,2]
[403580359,1769389833013,-179.77,0.00013889,2]
[403580360,1769389833024,-179.77,0.00013911,2]
[403580361,1769389833035,-211.70201985,0.00013925,2]
[403580362,1769389833047,-460.37435585,0.00013925,2]
[403580363,1769389833057,-467.29689224,0.00013927,2]
[403580364,1769389833069,-179.77,0.00013933,2]
[403580365,1769389833080,-273.44,0.00013939,2]
[403580366,1769389833090,-179.77,0.00013955,2]
[403580367,1769389833100,-179.77,0.00013977,2]
[403580368,1769389833110,-179.77,0.00013998,2]
[403580369,1769389833121,-170.09,0.00014005,2]
[403580370,1769389833130,-179.77,0.0001402,2]
[403580371,1769389833140,-179.77,0.00014042,2]
[403580372,1769389833149,-179.77,0.00014064,2]
[403580373,1769389833159,-179.77,0.00014086,2]
[403580374,1769389833168,-104.93632666,0.00014086,2]
[403580377,1769389838244,-500.0,0.00013888,2]
[403580378,1769389838254,-500.0,0.00013888,2]
[403580379,1769389838264,-500.0,0.00013888,2]
[403580380,1769389838274,-182.06228556,0.00013888,2]
[403580381,1769389838284,-500.0,0.00013888,2]
[403580382,1769389838293,-71.03332101,0.00013888,2]
[403580383,1769389838461,-428.96667899,0.00013888,2]
[403580384,1769389838474,-291.30071373,0.00013888,2]
[403580385,1769389838772,-208.69928627,0.00013888,2]
[403580386,1769389838782,-500.0,0.00013888,2]
[403580387,1769389838793,-500.0,0.00013888,2]
[403580388,1769389838803,-500.0,0.00013888,2]
[403580389,1769389838813,-500.0,0.00013888,2]
[403580390,1769389838822,-307.0,0.00013888,2]
[403580391,1769389838832,-500.0,0.00013888,2]
[403580392,1769389838841,-500.0,0.00013888,2]
[403580393,1769389838851,-500.0,0.00013888,2]
[403580394,1769389838860,-500.0,0.00013888,2]
[403580395,1769389838872,-500.0,0.00013888,2]
[403580396,1769389838884,-500.0,0.00013888,2]
[403580397,1769389838893,-500.0,0.00013888,2]
[403580398,1769389838903,-500.0,0.00013888,2]
[403580399,1769389838913,-500.0,0.00013888,2]
[403580400,1769389838923,-500.0,0.00013888,2]
[403580401,1769389838932,-500.0,0.00013888,2]
[403580402,1769389838942,-500.0,0.00013888,2]
[403580403,1769389838951,-500.0,0.00013888,2]
[403580404,1769389838961,-500.0,0.00013888,2]
[403580405,1769389838975,-500.0,0.00013888,2]
[403580406,1769389838985,-500.0,0.00013888,2]
[403580407,1769389838996,-45.06367334,0.00014086,2]
[403580408,1769389839008,-300.0,0.00014086,2]
[403580410,1769389839019,-300.0,0.00014086,2]
[403580412,1769389839028,-179.77,0.00014108,2]
[403580414,1769389839039,-3198.98,0.00014108,2]
[403580416,1769389839049,-179.77,0.00014129,2]
[403580417,1769389839059,-179.77,0.00014151,2]
[403580419,1769389839068,-179.77,0.00014173,2]
[403580421,1769389839079,-179.77,0.00014195,2]
[403580423,1769389839088,-179.77,0.00014217,2]
[403580425,1769389839098,-179.77,0.00014239,2]
[403580427,1769389839107,-500.0,0.00014405,2]
[403580428,1769389839116,-225.57947575,0.00014407,2]
[403580429,1769389839126,-327.98979877,0.0001441,2]
[403580430,1769389839135,-6361.1637179,0.00014411,2]
[403580431,1769389839954,-478.95997779,0.00014411,2]
[403580432,1769389839965,-2319.77797401,0.00014411,2]
[403580433,1769389839975,-424.44294111,0.00014411,2]
[403580434,1769389839984,-200.0,0.00014433,2]
[403580435,1769389839994,-17043.55085636,0.00014441,2]
[403580436,1769389840418,-386.49005528,0.00014441,2]
[403580437,1769389840432,-1219.4810845,0.00014441,2]
[403580438,1769389840444,-3893.37599331,0.00014441,2]
[403580439,1769389840455,-223.87876235,0.00014444,2]
[403580440,1769389840468,-500.0,0.00014506,2]
[403580441,1769389840478,-500.0,0.00014506,2]
[403580442,1769389840488,-500.0,0.00014506,2]
[403580443,1769389840505,-500.0,0.00014506,2]
[403580444,1769389840524,-500.0,0.00014506,2]
[403580445,1769389840534,-500.0,0.00014506,2]
[403580446,1769389840544,-500.0,0.00014506,2]
[403580447,1769389840556,-500.0,0.00014506,2]
[403580448,1769389840567,-500.0,0.00014506,2]
[403580449,1769389840579,-500.0,0.00014506,2]
[403580450,1769389840589,-500.0,0.00014506,2]
[403580451,1769389840599,-500.0,0.00014506,2]
[403580452,1769389840619,-500.0,0.00014506,2]
[403580453,1769389840631,-500.0,0.00014506,2]
[403580454,1769389840641,-500.0,0.00014506,2]
[403580455,1769389840651,-500.0,0.00014506,2]
[403580456,1769389840661,-500.0,0.00014506,2]
[403580457,1769389840671,-500.0,0.00014506,2]
[403580458,1769389840681,-531.48950376,0.00014506,2]
[403580459,1769389840691,-1038.75,0.00014506,2]
[403580460,1769389840701,-387.48567219,0.00014506,2]
[403580461,1769389840712,-500.0,0.00014506,2]
[403580462,1769389840724,-500.0,0.00014506,2]
[403580463,1769389840736,-522.80017481,0.00014506,2]
[403580464,1769389840746,-416.79170704,0.00014506,2]
[403580465,1769389840757,-500.0,0.00014506,2]
[403580466,1769389840770,-500.0,0.00014506,2]
[403580467,1769389840784,-500.0,0.00014506,2]
[403580468,1769389840797,-500.0,0.00014506,2]
[403580469,1769389840807,-500.0,0.00014506,2]
[403580470,1769389840818,-500.0,0.00014506,2]
[403580471,1769389840832,-500.0,0.00014506,2]
[403580472,1769389840842,-500.0,0.00014506,2]
[403580473,1769389840851,-500.0,0.00014506,2]
[403580474,1769389840861,-500.0,0.00014506,2]
[403580475,1769389840871,-500.0,0.00014506,2]
[403580476,1769389840881,-500.0,0.00014506,2]
[403580477,1769389840892,-500.0,0.00014506,2]
[403580478,1769389840901,-500.0,0.00014506,2]
[403580479,1769389840910,-500.0,0.00014506,2]
[403580480,1769389840921,-500.0,0.00014506,2]
[403580481,1769389840934,-500.0,0.00014511,2]
[403580482,1769389840944,-500.0,0.00014511,2]
[403580483,1769389840954,-500.0,0.00014511,2]
[403580484,1769389840964,-500.0,0.00014511,2]
[403580486,1769389840977,-1000.0,0.00014607,2]
[403580488,1769389840987,-189.48,0.00014644,2]
[403580490,1769389841002,-500.0,0.00014679,2]
[403580492,1769389841012,-500.0,0.00014706,2]
[403580493,1769389841022,-640.45,0.00014706,2]
[403580495,1769389841035,-506.26751507,0.00014706,2]
[403580497,1769389841046,-500.0,0.00014706,2]
[403580499,1769389841056,-500.0,0.00014706,2]
[403580501,1769389841066,-500.0,0.00014706,2]
[403580503,1769389841076,-500.0,0.00014706,2]
[403580505,1769389841088,-500.0,0.00014706,2]
[403580507,1769389841100,-500.0,0.00014706,2]
[403580509,1769389841110,-500.0,0.00014706,2]
[403580511,1769389841119,-500.0,0.00014706,2]
[403580513,1769389841130,-500.0,0.00014706,2]
[403580515,1769389841143,-500.0,0.00014706,2]
[403580517,1769389841153,-249.65225032,0.00014741,2]
[403580519,1769389841163,-9159.90166968,0.00014747,2]
[403580521,1769389841174,-1038.75,0.0001478,2]
[403580524,1769389841185,-424.44294105,0.00014909,2]
[403580527,1769389841195,-500.0,0.00014953,2]
[403580530,1769389841207,-225.57947572,0.00014989,2]
[403580533,1769389841219,-1038.75,0.00015054,2]
[403580535,1769389841229,-9159.90166968,0.00015083,2]
[403580537,1769389841241,-1000.0,0.0001515,2]
[403580539,1769389841254,-170.09,0.0001516,2]
[403580541,1769389841264,-255.0,0.00015213,2]
[403580543,1769389841274,-1680.0,0.00015277,2]
[403580545,1769389841285,-223.87876231,0.00015308,2]
[403580547,1769389841296,-1038.75,0.00015328,2]
[403580549,1769389841308,-151.0,0.00015336,2]
[403580551,1769389841319,-151.0,0.00015354,2]
[403580553,1769389841330,-424.44294105,0.00015408,2]
[403580555,1769389841341,-9159.90166968,0.00015419,2]
[403580557,1769389841352,-420.0,0.0001543,2]
[403580558,1769389841362,-308.0537358,0.00015438,2]
[403580560,1769389841372,-1000.0,0.00015546,2]
[403580562,1769389841382,-225.57947572,0.00015571,2]
[403580564,1769389841393,-1038.75,0.00015602,2]
[403580566,1769389841402,-553.32,0.00015631,2]
[403580568,1769389841412,-978.46,0.00015631,2]
[403580570,1769389841422,-273.44,0.00015682,2]
[403580572,1769389841431,-484.63,0.00015703,2]
[403580574,1769389841441,-484.63,0.00015703,2]
[403580576,1769389841451,-484.63,0.00015703,2]
[403580578,1769389841461,-968.74,0.00015741,2]
[403580580,1769389841472,-612.89,0.00015753,2]
[403580582,1769389841483,-612.89,0.00015753,2]
[403580584,1769389841493,-612.89,0.00015753,2]
[403580586,1769389841502,-612.89,0.00015753,2]
[403580588,1769389841513,-612.89,0.00015753,2]
[403580591,1769389841523,-9159.90166968,0.00015755,2]
[403580592,1769389841533,-200.0,0.00015838,2]
[403580594,1769389841542,-1038.75,0.00015876,2]
[403580596,1769389841552,-150.0,0.0001589,2]
[403580598,1769389841563,-558.8,0.0001589,2]
[403580600,1769389841573,-558.8,0.0001589,2]
[403580602,1769389841583,-150.0,0.0001589,2]
[403580604,1769389841593,-558.8,0.0001589,2]
[403580607,1769389841602,-150.0,0.0001589,2]
[403580608,1769389841612,-424.44294105,0.00015906,2]
[403580610,1769389841621,-615.41,0.00015918,2]
[403580612,1769389841632,-500.0,0.00015935,2]
[403580614,1769389841643,-500.0,0.00015935,2]
[403580616,1769389841654,-478.56930455,0.00015935,2]
[403580618,1769389841666,-500.0,0.00015935,2]
[403580620,1769389841677,-200.0,0.00016,2]
[403580622,1769389841687,-1000.0,0.00016019,2]
[403580624,1769389841698,-484.63,0.00016041,2]
[403580626,1769389841708,-700.0,0.00016082,2]
[403580628,1769389841717,-9159.90166968,0.0001609,2]
[403580630,1769389841728,-1038.75,0.0001615,2]
[403580632,1769389841738,-225.57947572,0.00016154,2]
[403580634,1769389841748,-223.87876231,0.00016172,2]
[403580636,1769389841757,-151.0,0.0001618,2]
[403580638,1769389841766,-721.12765535,0.0001618,2]
[403580640,1769389841776,-209.40437684,0.0001618,2]
[403580642,1769389841786,-8752.16786548,0.0001618,2]
[403580644,1769389841797,-250.0,0.0001618,2]
[403580645,1769389841809,-854.2589148,0.0001618,2]
[403580648,1769389841822,-250.0,0.0001618,2]
[403580649,1769389841832,-250.0,0.0001618,2]
[403580651,1769389841843,-166.59578157,0.0001618,2]
[403580653,1769389841853,-250.0,0.0001618,2]
[403580655,1769389841863,-250.0,0.0001618,2]
[403580657,1769389841873,-250.0,0.0001618,2]
[403580659,1769389841884,-250.0,0.0001618,2]
[403580661,1769389841894,-250.0,0.0001618,2]
[403580663,1769389841905,-250.0,0.0001618,2]
[403580665,1769389841915,-250.0,0.0001618,2]
[403580667,1769389841925,-250.0,0.0001618,2]
[403580669,1769389841935,-250.0,0.0001618,2]
[403580671,1769389841945,-250.0,0.0001618,2]
[403580673,1769389841955,-250.0,0.0001618,2]
[403580675,1769389841966,-250.0,0.0001618,2]
[403580677,1769389841975,-250.0,0.0001618,2]
[403580679,1769389841986,-250.0,0.0001618,2]
[403580681,1769389841996,-250.0,0.0001618,2]
[403580683,1769389842007,-250.0,0.0001618,2]
[403580684,1769389842021,-250.0,0.0001618,2]
[403580685,1769389842030,-250.0,0.0001618,2]
[403580686,1769389842040,-250.0,0.0001618,2]
[403580687,1769389842050,-250.0,0.0001618,2]
[403580688,1769389842061,-250.0,0.0001618,2]
[403580689,1769389842072,-250.0,0.0001618,2]
[403580690,1769389842083,-250.0,0.0001618,2]
[403580691,1769389842093,-250.0,0.0001618,2]
[403580692,1769389842103,-250.0,0.0001618,2]
[403580693,1769389842113,-250.0,0.0001618,2]
[403580694,1769389842124,-174.61919141,0.0001618,2]
[403580695,1769389842135,-209.40437684,0.0001618,2]
[403580696,1769389842146,-250.0,0.0001618,2]
[403580697,1769389842157,-250.0,0.0001618,2]
[403580698,1769389842167,-250.0,0.0001618,2]
[403580699,1769389842177,-250.0,0.0001618,2]
[403580700,1769389842187,-500.0,0.0001618,2]
[403580701,1769389842198,-500.0,0.0001618,2]
[403580702,1769389842208,-500.0,0.0001618,2]
[403580703,1769389842218,-500.0,0.0001618,2]
[403580704,1769389842228,-500.0,0.0001618,2]
[403580705,1769389842241,-500.0,0.0001618,2]
[403580706,1769389842252,-578.20924308,0.0001618,2]
[403580707,1769389842263,-500.0,0.0001618,2]
[403580708,1769389842272,-250.0,0.0001618,2]
[403580709,1769389842283,-500.0,0.0001618,2]
[403580710,1769389842293,-500.0,0.0001618,2]
[403580711,1769389842303,-250.0,0.0001618,2]
[403580712,1769389842313,-500.0,0.0001618,2]
[403580713,1769389842323,-220.0,0.0001618,2]
[403580714,1769389842333,-500.0,0.0001618,2]
[403580715,1769389842344,-250.0,0.0001618,2]
[403580716,1769389842353,-500.0,0.0001618,2]
[403580717,1769389842364,-220.0,0.0001618,2]
[403580718,1769389842375,-500.0,0.0001618,2]
[403580719,1769389842386,-250.0,0.0001618,2]
[403580720,1769389842397,-500.0,0.0001618,2]
[403580721,1769389842408,-343.87105702,0.0001618,2]
[403580722,1769389842418,-500.0,0.0001618,2]
[403580723,1769389842428,-250.0,0.0001618,2]
[403580724,1769389842439,-250.0,0.0001618,2]
[403580725,1769389842449,-500.0,0.0001618,2]
[403580726,1769389842459,-500.0,0.0001618,2]
[403580727,1769389842471,-250.0,0.0001618,2]
[403580728,1769389842481,-250.0,0.0001618,2]
[403580729,1769389842491,-500.0,0.0001618,2]
[403580730,1769389842502,-151.0,0.0001618,2]
[403580731,1769389842512,-500.0,0.0001618,2]
[403580732,1769389842523,-250.0,0.0001618,2]
[403580733,1769389842533,-250.0,0.0001618,2]
[403580734,1769389842544,-500.0,0.0001618,2]
[403580735,1769389842554,-303.26568289,0.0001618,2]
[403580736,1769389842564,-500.0,0.0001618,2]
[403580737,1769389842574,-250.0,0.0001618,2]
[403580738,1769389842584,-250.0,0.0001618,2]
[403580739,1769389842595,-250.0,0.0001618,2]
[403580740,1769389842605,-500.0,0.0001618,2]
[403580741,1769389842617,-250.0,0.0001618,2]
[403580742,1769389842627,-250.0,0.0001618,2]
[403580743,1769389842637,-250.0,0.0001618,2]
[403580744,1769389842648,-250.0,0.0001618,2]
[403580745,1769389842660,-250.0,0.0001618,2]
[403580746,1769389842671,-250.0,0.0001618,2]
[403580747,1769389842683,-250.0,0.0001618,2]
[403580748,1769389842694,-250.0,0.0001618,2]
[403580749,1769389842707,-250.0,0.0001618,2]
[403580750,1769389842721,-250.0,0.0001618,2]
[403580751,1769389842732,-250.0,0.0001618,2]
[403580752,1769389842743,-250.0,0.0001618,2]
[403580753,1769389842753,-250.0,0.0001618,2]
[403580754,1769389842764,-322.6107,0.0001618,2]
[403580755,1769389842775,-250.0,0.0001618,2]
[403580756,1769389842787,-250.0,0.0001618,2]
[403580757,1769389842798,-250.0,0.0001618,2]
[403580758,1769389842809,-250.0,0.0001618,2]
[403580759,1769389842820,-250.0,0.0001618,2]
[403580760,1769389842831,-250.0,0.0001618,2]
[403580761,1769389842843,-250.0,0.0001618,2]
[403580762,1769389842854,-500.0,0.0001618,2]
[403580763,1769389842865,-500.0,0.0001618,2]
[403580764,1769389842877,-500.0,0.0001618,2]
[403580765,1769389842888,-500.0,0.0001618,2]
[403580766,1769389842900,-500.0,0.0001618,2]
[403580767,1769389842912,-500.0,0.0001618,2]
[403580768,1769389842924,-250.0,0.0001618,2]
[403580769,1769389842934,-743.50770149,0.0001618,2]
[403580770,1769389842945,-500.0,0.0001618,2]
[403580771,1769389842955,-500.0,0.0001618,2]
[403580772,1769389842966,-250.0,0.0001618,2]
[403580773,1769389842976,-500.0,0.0001618,2]
[403580774,1769389842986,-500.0,0.0001618,2]
[403580776,1769389843000,-250.0,0.0001618,2]
[403580777,1769389843012,-500.0,0.0001618,2]
[403580778,1769389843022,-500.0,0.0001618,2]
[403580779,1769389843033,-250.0,0.0001618,2]
[403580780,1769389843046,-500.0,0.0001618,2]
[403580781,1769389843056,-500.0,0.0001618,2]
[403580782,1769389843066,-250.0,0.0001618,2]
[403580784,1769389843078,-500.0,0.0001618,2]
[403580785,1769389843089,-500.0,0.0001618,2]
[403580786,1769389843099,-500.0,0.0001618,2]
[403580787,1769389843109,-500.0,0.0001618,2]
[403580788,1769389843119,-500.0,0.0001618,2]
[403580789,1769389843130,-500.0,0.0001618,2]
[403580790,1769389843141,-500.0,0.0001618,2]
[403580791,1769389843152,-500.0,0.0001618,2]
[403580792,1769389843163,-151.0,0.0001618,2]
[403580793,1769389843174,-151.0,0.0001618,2]
[403580794,1769389843186,-151.0,0.0001618,2]
[403580795,1769389843197,-151.0,0.0001618,2]
[403580796,1769389843209,-250.0,0.0001618,2]
[403580797,1769389843221,-151.0,0.0001618,2]
[403580798,1769389843231,-250.0,0.0001618,2]
[403580799,1769389843242,-151.0,0.0001618,2]
[403580800,1769389843252,-151.0,0.0001618,2]
[403580801,1769389843263,-151.0,0.0001618,2]
[403580802,1769389843275,-151.0,0.0001618,2]
[403580803,1769389843286,-151.0,0.0001618,2]
[403580805,1769389843297,-151.0,0.0001618,2]
[403580806,1769389843311,-250.0,0.0001618,2]
[403580807,1769389843323,-151.0,0.0001618,2]
[403580808,1769389843574,-209.40437684,0.0001618,2]
[403580809,1769389843598,-968.6,0.00016192,2]
[403580810,1769389843609,-150.0,0.00016267,2]
[403580811,1769389843621,-170.09,0.00016316,2]
[403580812,1769389843632,-189.49351528,0.00016333,2]
[403580813,1769389843643,-1000.0,0.00016356,2]
[403580814,1769389843653,-1000.0,0.00016356,2]
[403580815,1769389843663,-301.15,0.00016356,2]
[403580816,1769389843674,-1000.0,0.00016357,2]
[403580817,1769389843685,-500.0,0.00016391,2]
[403580818,1769389843697,-576.01544126,0.00016391,2]
[403580819,1769389843708,-500.0,0.00016391,2]
[403580820,1769389843719,-500.0,0.00016391,2]
[403580821,1769389843730,-424.44294105,0.00016405,2]
[403580822,1769389843742,-1169.0,0.00016411,2]
[403580823,1769389843753,-1038.75,0.00016424,2]
[403580824,1769389843764,-433.0,0.00016424,2]
[403580825,1769389843779,-1000.0,0.00016424,2]
[403580826,1769389843790,-9159.90166968,0.00016426,2]
[403580827,1769389843801,-408.3589316,0.00016428,2]
[403580828,1769389843813,-151.0,0.0001643,2]
[403580829,1769389843825,-151.0,0.0001643,2]
[403580830,1769389843836,-314.44792646,0.00016432,2]
[403580831,1769389843847,-150.0,0.00016432,2]
[403580832,1769389843857,-500.0,0.00016432,2]
[403580833,1769389843868,-394.71820503,0.00016432,2]